{"text_format":"1","workbook":"xlsx","n_sheets":1,"sheets":["Scuola sci"],"not_rendered":{"charts":0,"images":2,"macros":1,"external_links":0,"defined_names":0,"comments":0,"pivot_tables":0},"unopened":[],"bounds":{"document_bytes":16777216,"sheet_cells":100000,"rows_first":2000,"rows_last":500,"rows_between":2000,"halvings":0,"cell_chars":16384,"cell_head_chars":4096},"cells_cut":0,"cells_raw":0,"read":"whole","date_system":"1900"}

{"sheet":"Scuola sci","index":0,"n_rows":62,"n_cols":23,"rows_kept":62,"cut":false,"hidden":false,"merged":[[6,4,6,15],[8,16,8,26],[10,3,10,13],[14,4,14,10],[7,16,7,17],[1,2,1,3],[3,4,3,15],[7,4,7,15],[8,2,8,3],[7,18,7,26],[8,4,8,15],[1,16,1,20],[1,21,1,26],[1,4,1,15],[13,3,13,26],[14,25,14,26],[12,2,12,3],[14,11,14,12],[12,11,12,12],[12,22,12,24],[12,13,12,21],[24,20,24,26],[24,14,24,15],[9,0,9,1],[9,2,9,26],[4,4,4,15],[5,4,5,15],[1,0,1,1],[10,0,10,1],[7,0,7,1],[5,16,5,17],[8,0,8,1],[10,16,10,26],[10,14,10,15],[7,2,7,3],[5,0,5,1],[5,2,5,3],[2,0,2,1],[2,2,2,3],[4,0,4,1],[4,2,4,3],[3,2,3,3],[3,0,3,1],[3,16,3,26],[5,18,5,26],[32,14,32,15],[59,0,59,26],[31,14,31,15],[56,0,56,26],[57,0,57,26],[47,0,47,26],[51,0,51,26],[52,0,52,26],[14,2,14,3],[32,16,32,18],[14,13,14,21],[18,16,18,18],[14,22,14,24],[27,20,33,26],[15,3,15,26],[22,20,22,26],[26,16,26,18],[26,14,26,15],[27,14,27,15],[27,16,27,18],[22,14,22,15],[21,16,21,18],[28,14,28,15],[28,16,28,18],[25,14,25,15],[25,16,25,18],[37,0,37,26],[29,14,29,15],[18,14,18,15],[18,20,18,26],[62,0,62,26],[60,0,60,26],[61,0,61,26],[33,14,33,15],[33,16,33,18],[53,0,53,26],[45,0,45,26],[41,0,41,26],[29,16,29,18],[54,0,54,26],[50,0,50,26],[49,0,49,26],[42,0,42,26],[46,0,46,26],[34,0,34,26],[36,0,36,26],[39,0,39,26],[40,0,40,26],[21,14,21,15],[17,4,17,6],[58,0,58,26],[38,0,38,26],[23,16,23,18],[23,14,23,15],[23,20,23,26],[48,0,48,26],[43,0,43,26],[25,20,25,26],[19,20,19,26],[55,0,55,26],[31,16,31,18],[30,14,30,15],[30,16,30,18],[26,20,26,26],[17,2,17,3],[22,16,22,18],[21,20,21,26],[44,0,44,26],[20,14,20,15],[20,16,20,18],[20,20,20,26],[24,16,24,18],[0,1,0,7],[0,8,0,26],[12,25,12,26],[11,14,11,15],[16,2,16,26],[16,0,16,1],[14,0,14,1],[19,14,19,15],[19,16,19,18],[15,0,15,1],[17,20,17,26],[11,3,11,13],[12,0,12,1],[13,0,13,1],[11,0,11,1],[11,16,11,26],[12,4,12,10],[4,16,4,17],[2,4,2,15],[2,16,2,26],[4,18,4,26],[6,2,6,3],[6,16,6,17],[6,18,6,26]]}
[null,null,null,null,null,null,null,null,"MODULO ORDINE SCUOLE SCI A.M.S.I. - I/2020-21"]
["Distribuito da:",null,"Scuola sci*: ",null,null,null,null,null,null,null,null,null,null,null,null,null,"Data ordine*: "]
["CLUSONE COMPANY SRL",null,"Indirizzo*: ",null,null,null,null,null,null,null,null,null,null,null,null,null,"Data consegna*: 30 Novembre 2020"]
["Via Brescia, 3   -   24023 CLUSONE (BG)",null,"CAP-Città-Pr.*:",null,null,null,null,null,null,null,null,null,null,null,null,null,"Pagamento: Ri.ba. a 60 gg. DF FM"]
["Partita IVA 02060410160",null,"Dest. merce*:",null,null,null,null,null,null,null,null,null,null,null,null,null,"Banca*: "]
["Tel. 0346-25960 - Fax 0346-460234",null,"C.F. *",null,null,null,null,null,null,null,null,null,null,null,null,null,"Filiale*: "]
[null,null,"P/IVA",null,null,null,null,null,null,null,null,null,null,null,null,null,"IBAN*: "]
["email: info@clco.it",null,"Tel.* - Fax*:",null,null,null,null,null,null,null,null,null,null,null,null,null,"Cod. FE"]
["Fornitore ufficiale A.M.S.I.",null,"email*:",null,null,null,null,null,null,null,null,null,null,null,null,null,"(*) campi obbligatori"]
[]
["Combinazione colori - Giacca sci",null,"A/",null,null,null,null,null,null,null,null,null,null,null,"B/"]
["Combinazione colori - Pant. sci e comfort",null,"A/",null,null,null,null,null,null,null,null,null,null,null,"B/"]
["Ricamo 1"," ","Misure in cm.: ",null,null,null,null,null,null,null,null,"Colore: ",null,null,null,null,null,null,null,null,null,null,"Pantone nr.: "]
["  "," ","Posizione:"]
["Ricamo 2"," ","Misure in cm.: ",null,null,null,null,null,null,null,null,"Colore: ",null,null,null,null,null,null,null,null,null,null,"Pantone nr.: "]
[" "," ","Posizione:"]
[]
["Totale pz.:",{"$f":"SUM(O20:P34)","v":0},"Totale Euro:",null,{"$f":"SUM(T20:T34)","v":0},null,null,"(IVA esclusa)",null,null,null,null,null,null,null,null,null,null,null,null,"NOTE:"]
["CODICE","DESCRIZIONE ","COL.",40,42,44,46,48,50,52,54,56,58,60,"TOT.",null,"PREZZO"]
["S1-8680AM","GIACCA SCI UOMO ",null,"-","-",null,null,null,null,null,null,null,null,null,{"$f":"SUM(D20:N20)","v":0},null,275,null,null,{"$f":"O20*Q20","v":0}]
["S1-9680AM","GIACCA SCI DONNA",null,null,null,null,null,null,"-","-","-","-","-","-",{"$f":"SUM(D21:N21)","v":0},null,275,null,null,{"$f":"O21*Q21","v":0}]
["S1-8179AM-S","PANT. SCI  - SHORT",null,null,null,null,null,null,null,null,null,null,null,null,0,null,195,null,null,0]
["S1-8179AM-R","PANT. SCI - REGULAR",null,null,null,null,null,null,null,null,null,null,null,null,0,null,195,null,null,0]
["S1-8179AM-L","PANT. SCI - LONG",null,null,null,null,null,null,null,null,null,null,null,null,0,null,195,null,null,0]
["S1-8184AM-S","PANT. SCI COMFORT - SHORT",null,null,null,null,null,null,null,null,null,null,null,null,0,null,195,null,null,0]
["S1-8184AM-R","PANT. SCI COMFORT - REGULAR",null,null,null,null,null,null,null,null,null,null,null,null,0,null,195,null,null,0]
["S1-8184AM-L","PANT. SCI COMFORT - LONG",null,null,null,null,null,null,null,null,null,null,null,null,0,null,195,null,null,0,"Firma e timbro della Scuola sci"]
["S1-8381AM","GIACCA LEGGERA IN \"PRIMALOFT\"",null,null,null,null,null,null,null,null,null,null,null,null,0,null,129,null,null,0]
["S1-0423AM","SOTTOTUTA SCI",null,null,null,null,null,null,null,null,null,null,null,null,{"$f":"SUM(D29:N29)","v":0},null,49,null,null,0]
[null,null,null,"NR.","XXS","XS","S","M","L","XL","XXL","3XL"]
["S1-998AM","MAGLIONE ZIP CORTA LANA E PRIM.",null,"-",null,null,null,null,null,null,null,null,"-","-",{"$f":"SUM(D31:N31)","v":0},null,79,null,null,{"$f":"O31*Q31","v":0}]
["S1-9998AM-R","MAGLIONE ZIP CORTA + RICAMO",null,"-",null,null,null,null,null,null,null,null,"-","-",{"$f":"SUM(D32:N32)","v":0},null,84,null,null,{"$f":"O32*Q32","v":0}]
["IMPRIC","IMPIANTO RICAMO PER MAGLIONE","-",null,"-","-","-","-","-","-","-","-","-","-",{"$f":"SUM(D33:N33)","v":0},null,50,null,null,{"$f":"O33*Q33","v":0}]
["S1-9999AM","MANTELLA SCI",null,"-",null,null,null,null,null,null,null,"-","-","-",0,null,100,null,null,0]
["Seguono le condizioni generali di vendita"]
[]
["CONDIZIONI GENERALI DI VENDITA"]
["1. Ultima data ordine 27 aprile 2020. Trasporto e assicurazione a carico del venditore."]
["2. E' possibile personalizzare le giacche da sci solo se l'ordine è uguale o superiore ai 20 pz. Le personalizzazioni (impianti, ricami e velcro) avranno un costo aggiuntivo. Le personalizzazioni (ricami e velcro/scudetti) saranno termosaldate per mantenere l'impermeabilità (Dermizax 20.000 mm H2O). Questo però potrà alterare le caratteristiche di traspirabilità del tessuto (Dermizax 20.000 g/mq/24h)."]
["3. Il presente contratto, può essere sottoposto a rettifica da parte del venditore a mezzo comunicazione scritta."]
["4. L’esecuzione del presente contratto è subordinata alla clausola “Impedimento di forza maggiore”."]
["5. Il destinatario della merce all’atto della consegna ha l’obbligo di controllare l’integrità degli imballi ed in caso di danneggiamento ha l’obbligo di apporre riserva scritta sulla lettera di vettura del trasportatore che ha  effettuato la consegna, poiché diversamente il venditore non accrediterà il valore della merce mancante o danneggiata. "]
["6. Qualsiasi contestazione o reclamo in ordine all’esecuzione del presente contratto o ad eventuali vizi della fornitura dovrà essere comunicato in forma scritta con raccomandata A.R. o altro mezzo che ne comprovi la ricezione, entro il termine di 8 giorni dalla data di ricevimento della merce."]
["7. Non sono accettati resi di merce quando il prodotto sia stato modificato dall’acquirente."]
["8. Eventuali restituzioni saranno accettate solo se autorizzate in forma scritta. L’eventuale accredito o sostituzione della merce resa, sarà valutato dal venditore al ricevimento della merce. Non saranno per nessun motivo accettati resi trascorsi 10 (dieci) giorni dalla data di comunicazione di vizio o difformità. Le spese di spedizione del reso saranno a carico dell'acquirente mentre quelle d'invio dell'eventuale sostituzione saranno a carico del venditore."]
["9. Nel caso di ritardo nella consegna verranno riconosciuti i seguenti sconti: 10 gg. di ritardo sconto 5%, tra i 10  ed i 20 gg. di ritardo sconto 10%."]
["10. E’ facoltà del venditore sospendere od annullare gli ordini in corso qualora, a Suo insindacabile giudizio, non sussistano garanzie di solvibilità dell’acquirente o esista una situazione d’insolvenza."]
["11. I pagamenti dovranno sempre essere effettuati al più tardi con Ri.Ba. a 60 gg. fine mese a decorrere dalla data di fattura. Non saranno accettate altre forme di pagamento."]
["12. Per le spedizioni a Livigno e S. Marino ci sarà un concorso di spese di Euro 40-."]
["13. In merito allo scudetto circolare AMSI al petto sinistro, Vi consigliamo di utilizzare un velcro morbido e con misure non superiori ai 7 cm. di diametro."]
["14. Le stesse condizioni di vendita regoleranno anche gli eventuali riordini."]
["15. Con l'accettazione del presente ordine si autorizza l'invio delle fatture a mezzo posta elettronica all'indirizzo indicato nella testata del presente ordine."]
["16. Per ogni controversia comunque connessa con l’esecuzione del presente contratto, è competente esclusivamente il Foro del Tribunale di Bergamo."]
["                                                          Data                                                                                 Timbro e firma dell'acquirente"]
["                                          ___________________                                               _______________________________________"]
[]
["Dichiaro di aver letto ed accettato tutte le condizioni generali di vendita sopra riportate. In particolare approvo specificatamente, ai sensi dell’articolo 1341 del Codice Civile, le clausole numero 1, 2, 3, 4, 5, 6, 7, 8, 9, 10, 11, 12, 13, 14,15, 16."]
["                                                          Data                                                                                 Timbro e firma dell'acquirente"]
["                                          ___________________                                               _______________________________________"]
[]
["Dichiarazione di consenso ai sensi della legge 31/12/1996 Nr. 675"]
["I dati in nostro possesso (dati anagrafici e fiscali nonché dati di natura economica) sono utilizzati esclusivamente per il regolare svolgimento delle attività commerciali ed amministrative in essere o future. Non siamo in possesso di alcun Vostro dato qualificabile come sensibile (art. 4 lettera d) o giudiziario (art. 4 lettera e). I Vostri dati vengono trattati per finalità amministrative e commerciali. In ogni momento potrà esercitare i Suoi diritti ai sensi dell’art. 7,8,9 e 10 del D.lgs. 196/2003. Per non ricevere altre comunicazioni di questa tipologia potete comunicarlo a mezzo fax al nr. 0346-460234 o tramite email all’indirizzo info@clco.it."]